[Event "Titled Tuesday Blitz June 20 Early 2023"]
[White "Fiorito, Joaquin"]
[Black "Quesada Perez, Yuniesky"]
[WhiteFideId "180173"]
[BlackFideId "3504409"]
[WhiteElo "2199"]
[BlackElo "2585"]
[Result "0-1"]
[Round "8"]
[TimeControl "180+2"]
[Date "2023.06.20"]
[WhiteClock "0:00:01"]
[BlackClock "0:01:08"]
[Board "33"]

1. d4 {[%clk 0:03:00]}  d5 {[%clk 0:02:56]} 2. c4 {[%clk 0:03:01]}  c6 {[%clk 0:02:56]} 3. Nc3 {[%clk 0:03:00]}  Nf6 {[%clk 0:02:56]} 4. e3 {[%clk 0:03:01]}  e6 {[%clk 0:02:52]} 5. Nf3 {[%clk 0:02:59]}  Nbd7 {[%clk 0:02:52]} 6. Bd3 {[%clk 0:02:59]}  dxc4 {[%clk 0:02:45]} 7. Bxc4 {[%clk 0:03:00]}  b5 {[%clk 0:02:44]} 8. Bd3 {[%clk 0:03:01]}  Bd6 {[%clk 0:02:44]} 9. O-O {[%clk 0:02:58]}  O-O {[%clk 0:02:43]} 10. e4 {[%clk 0:02:56]}  e5 {[%clk 0:02:42]} 11. dxe5 {[%clk 0:02:55]}  Nxe5 {[%clk 0:02:42]} 12. Nxe5 {[%clk 0:02:54]}  Bxe5 {[%clk 0:02:43]} 13. h3 {[%clk 0:02:49]}  Re8 {[%clk 0:02:41]} 14. Qe2 {[%clk 0:02:46]}  g6 {[%clk 0:02:22]} 15. Bg5 {[%clk 0:02:35]}  Qb6 {[%clk 0:02:10]} 16. Kh1 {[%clk 0:02:33]}  Nh5 {[%clk 0:02:10]} 17. Rad1 {[%clk 0:02:14]}  Be6 {[%clk 0:02:02]} 18. g4 {[%clk 0:02:11]}  Nf4 {[%clk 0:02:00]} 19. Bxf4 {[%clk 0:02:02]}  Bxf4 {[%clk 0:02:01]} 20. Qc2 {[%clk 0:01:57]}  Rad8 {[%clk 0:01:57]} 21. Ne2 {[%clk 0:01:57]}  Qc7 {[%clk 0:01:50]} 22. Kg2 {[%clk 0:01:56]}  a6 {[%clk 0:01:42]} 23. b3 {[%clk 0:01:52]}  Bh6 {[%clk 0:01:33]} 24. f4 {[%clk 0:01:28]}  c5 {[%clk 0:01:33]} 25. e5 {[%clk 0:01:29]}  c4 {[%clk 0:01:25]} 26. Be4 {[%clk 0:01:27]}  Qc5 {[%clk 0:01:20]} 27. bxc4 {[%clk 0:01:02]}  Bxc4 {[%clk 0:01:18]} 28. Kf3 {[%clk 0:00:37]}  Qa3+ {[%clk 0:01:16]} 29. Kg2 {[%clk 0:00:31]}  Qe3 {[%clk 0:01:15]} 30. Bf3 {[%clk 0:00:06]}  Bxf4 {[%clk 0:01:13]} 31. Nxf4 {[%clk 0:00:05]}  Bxf1+ {[%clk 0:01:10]} 32. Rxf1 {[%clk 0:00:01]}  Rd2+ {[%clk 0:01:08]} 0-1


[Site "https://www.chess.com"]

[Event "Titled Tuesday Blitz June 20 Early 2023"]
[White "Sowul, Bartosz"]
[Black "Lorparizangeneh, Shahin"]
[WhiteFideId "1137590"]
[BlackFideId "12521604"]
[WhiteElo "2188"]
[BlackElo "2526"]
[Result "1/2-1/2"]
[Round "8"]
[TimeControl "180+2"]
[Date "2023.06.20"]
[WhiteClock "0:00:31"]
[BlackClock "0:00:32"]
[Board "35"]

1. e4 {[%clk 0:03:00]}  e5 {[%clk 0:02:59]} 2. Nf3 {[%clk 0:03:00]}  Nc6 {[%clk 0:02:59]} 3. Bb5 {[%clk 0:03:01]}  a6 {[%clk 0:03:00]} 4. Bxc6 {[%clk 0:03:01]}  dxc6 {[%clk 0:03:00]} 5. O-O {[%clk 0:03:01]}  Bd6 {[%clk 0:02:55]} 6. d4 {[%clk 0:02:59]}  exd4 {[%clk 0:02:54]} 7. Qxd4 {[%clk 0:03:00]}  f6 {[%clk 0:02:52]} 8. Be3 {[%clk 0:03:00]}  Be6 {[%clk 0:02:49]} 9. Nbd2 {[%clk 0:03:00]}  c5 {[%clk 0:02:44]} 10. Qc3 {[%clk 0:02:56]}  Ne7 {[%clk 0:02:44]} 11. Bxc5 {[%clk 0:02:48]}  O-O {[%clk 0:02:44]} 12. Rad1 {[%clk 0:02:44]}  Bxc5 {[%clk 0:02:41]} 13. Qxc5 {[%clk 0:02:45]}  Nc6 {[%clk 0:02:40]} 14. Nb3 {[%clk 0:02:38]}  Qe8 {[%clk 0:02:39]} 15. Nbd4 {[%clk 0:02:27]}  Bg4 {[%clk 0:02:22]} 16. Nxc6 {[%clk 0:02:13]}  bxc6 {[%clk 0:02:23]} 17. Qc4+ {[%clk 0:02:09]}  Kh8 {[%clk 0:02:22]} 18. Rd3 {[%clk 0:02:09]}  Rb8 {[%clk 0:02:02]} 19. b3 {[%clk 0:02:03]}  a5 {[%clk 0:02:02]} 20. h3 {[%clk 0:02:03]}  Rb4 {[%clk 0:02:01]} 21. Qc5 {[%clk 0:01:57]}  Bxf3 {[%clk 0:02:01]} 22. Rxf3 {[%clk 0:01:58]}  Rxe4 {[%clk 0:01:44]} 23. Qxa5 {[%clk 0:01:57]}  Re2 {[%clk 0:01:44]} 24. Qc3 {[%clk 0:01:54]}  Qe4 {[%clk 0:01:42]} 25. Re3 {[%clk 0:01:28]}  Qxc2 {[%clk 0:01:30]} 26. Qxc2 {[%clk 0:01:25]}  Rxc2 {[%clk 0:01:31]} 27. Ra1 {[%clk 0:01:24]}  Rd8 {[%clk 0:01:24]} 28. a4 {[%clk 0:01:23]}  h6 {[%clk 0:01:24]} 29. a5 {[%clk 0:01:22]}  Rdd2 {[%clk 0:01:22]} 30. b4 {[%clk 0:01:04]}  Rxf2 {[%clk 0:01:21]} 31. Rg3 {[%clk 0:00:56]}  Ra2 {[%clk 0:01:05]} 32. Rxa2 {[%clk 0:00:51]}  Rxa2 {[%clk 0:01:06]} 33. Rc3 {[%clk 0:00:51]}  Ra4 {[%clk 0:01:05]} 34. Rxc6 {[%clk 0:00:51]}  Rxb4 {[%clk 0:01:05]} 35. Rxc7 {[%clk 0:00:51]}  Ra4 {[%clk 0:01:06]} 36. Ra7 {[%clk 0:00:52]}  Ra2 {[%clk 0:01:04]} 37. Kh2 {[%clk 0:00:51]}  h5 {[%clk 0:01:03]} 38. Kg3 {[%clk 0:00:51]}  Kh7 {[%clk 0:01:03]} 39. a6 {[%clk 0:00:49]}  Kh6 {[%clk 0:01:04]} 40. Ra8 {[%clk 0:00:48]}  g5 {[%clk 0:01:03]} 41. a7 {[%clk 0:00:41]}  Kg7 {[%clk 0:01:03]} 42. Kf3 {[%clk 0:00:41]}  Kh7 {[%clk 0:00:59]} 43. Ke4 {[%clk 0:00:38]}  Kg7 {[%clk 0:00:57]} 44. g4 {[%clk 0:00:34]}  hxg4 {[%clk 0:00:44]} 45. hxg4 {[%clk 0:00:35]}  Ra5 {[%clk 0:00:42]} 46. Kd4 {[%clk 0:00:35]}  Ra1 {[%clk 0:00:37]} 47. Ke4 {[%clk 0:00:34]}  Ra4+ {[%clk 0:00:37]} 48. Kf3 {[%clk 0:00:30]}  Rf4+ {[%clk 0:00:34]} 49. Kg3 {[%clk 0:00:31]}  Ra4 {[%clk 0:00:35]} 50. Kf3 {[%clk 0:00:31]}  Kh7 {[%clk 0:00:34]} 51. Kg3 {[%clk 0:00:31]}  Ra3+ {[%clk 0:00:33]} 52. Kg2 {[%clk 0:00:31]}  Kg7 {[%clk 0:00:32]} 53. Kf2 {[%clk 0:00:31]}  Ra4 {[%clk 0:00:32]} 54. Kf3 {[%clk 0:00:31]} 1/2-1/2


[Site "https://www.chess.com"]

[Event "Titled Tuesday Blitz June 20 Early 2023"]
[White "Zemlyanskii, Ivan"]
[Black "Asavasaetakul, Chawit"]
[WhiteFideId "24249971"]
[BlackFideId "6204856"]
[WhiteElo "2421"]
[BlackElo "1919"]
[Result "1-0"]
[Round "8"]
[TimeControl "180+2"]
[Date "2023.06.20"]
[WhiteClock "0:00:18"]
[BlackClock "0:00:13"]
[Board "37"]

1. d4 {[%clk 0:03:00]}  d5 {[%clk 0:02:57]} 2. Bf4 {[%clk 0:03:01]}  c6 {[%clk 0:02:57]} 3. e3 {[%clk 0:02:50]}  Qb6 {[%clk 0:02:57]} 4. Qc1 {[%clk 0:02:50]}  Bf5 {[%clk 0:02:54]} 5. Bd3 {[%clk 0:02:47]}  Bxd3 {[%clk 0:02:53]} 6. cxd3 {[%clk 0:02:48]}  Nd7 {[%clk 0:02:53]} 7. Nc3 {[%clk 0:02:46]}  e6 {[%clk 0:02:53]} 8. Nf3 {[%clk 0:02:46]}  Ngf6 {[%clk 0:02:54]} 9. O-O {[%clk 0:02:44]}  Be7 {[%clk 0:02:54]} 10. e4 {[%clk 0:02:45]}  O-O {[%clk 0:02:51]} 11. e5 {[%clk 0:02:43]}  Ne8 {[%clk 0:02:45]} 12. h4 {[%clk 0:02:43]}  Rc8 {[%clk 0:02:36]} 13. Qd2 {[%clk 0:02:41]}  h5 {[%clk 0:02:09]} 14. Ne2 {[%clk 0:02:31]}  g6 {[%clk 0:02:08]} 15. Bg5 {[%clk 0:02:25]}  Qd8 {[%clk 0:02:07]} 16. Nf4 {[%clk 0:02:04]}  Ng7 {[%clk 0:02:06]} 17. Bxe7 {[%clk 0:01:46]}  Qxe7 {[%clk 0:02:05]} 18. Ne2 {[%clk 0:01:44]}  Nf5 {[%clk 0:02:04]} 19. g3 {[%clk 0:01:40]}  Kg7 {[%clk 0:02:03]} 20. Kg2 {[%clk 0:01:39]}  c5 {[%clk 0:01:59]} 21. dxc5 {[%clk 0:01:36]}  Rxc5 {[%clk 0:01:59]} 22. Rfe1 {[%clk 0:01:23]}  Rfc8 {[%clk 0:01:56]} 23. Ned4 {[%clk 0:01:23]}  Nh6 {[%clk 0:01:42]} 24. Qf4 {[%clk 0:01:17]}  a6 {[%clk 0:01:21]} 25. Re2 {[%clk 0:01:14]}  R5c7 {[%clk 0:01:20]} 26. Rae1 {[%clk 0:01:06]}  Nc5 {[%clk 0:01:20]} 27. Rd2 {[%clk 0:01:06]}  b5 {[%clk 0:01:16]} 28. Ng5 {[%clk 0:00:57]}  b4 {[%clk 0:01:08]} 29. f3 {[%clk 0:00:48]}  b3 {[%clk 0:01:03]} 30. a3 {[%clk 0:00:43]}  Rb8 {[%clk 0:00:45]} 31. g4 {[%clk 0:00:42]}  hxg4 {[%clk 0:00:43]} 32. fxg4 {[%clk 0:00:43]}  Nd7 {[%clk 0:00:35]} 33. h5 {[%clk 0:00:39]}  Nf8 {[%clk 0:00:35]} 34. Rf1 {[%clk 0:00:30]}  a5 {[%clk 0:00:21]} 35. Rdf2 {[%clk 0:00:29]}  Rbb7 {[%clk 0:00:21]} 36. Ngf3 {[%clk 0:00:25]}  gxh5 {[%clk 0:00:20]} 37. gxh5 {[%clk 0:00:25]}  Kh7 {[%clk 0:00:20]} 38. Ng5+ {[%clk 0:00:22]}  Kg7 {[%clk 0:00:20]} 39. Kh2 {[%clk 0:00:22]}  Nh7 {[%clk 0:00:21]} 40. Rg2 {[%clk 0:00:21]}  Nxg5 {[%clk 0:00:21]} 41. Rxg5+ {[%clk 0:00:22]}  Kh7 {[%clk 0:00:22]} 42. Rfg1 {[%clk 0:00:22]}  Qf8 {[%clk 0:00:22]} 43. Qf6 {[%clk 0:00:19]}  Ng8 {[%clk 0:00:20]} 44. Rg7+ {[%clk 0:00:19]}  Kh8 {[%clk 0:00:13]} 45. Rxg8+ {[%clk 0:00:18]} 1-0


[Site "https://www.chess.com"]

[Event "Titled Tuesday Blitz June 20 Early 2023"]
[White "Narayanan.S.L"]
[Black "Marek, Matyas"]
[WhiteFideId "5058422"]
[BlackFideId "335398"]
[WhiteElo "2563"]
[BlackElo "2302"]
[Result "1-0"]
[Round "8"]
[TimeControl "180+2"]
[Date "2023.06.20"]
[WhiteClock "0:01:00"]
[BlackClock "0:00:12"]
[Board "39"]

1. g3 {[%clk 0:02:59]}  Nf6 {[%clk 0:02:59]} 2. Bg2 {[%clk 0:02:58]}  g6 {[%clk 0:03:00]} 3. Nf3 {[%clk 0:02:58]}  Bg7 {[%clk 0:03:01]} 4. O-O {[%clk 0:02:59]}  O-O {[%clk 0:03:02]} 5. d3 {[%clk 0:02:59]}  d6 {[%clk 0:03:02]} 6. Nbd2 {[%clk 0:02:58]}  e5 {[%clk 0:03:02]} 7. a4 {[%clk 0:02:54]}  Nbd7 {[%clk 0:02:58]} 8. a5 {[%clk 0:02:54]}  a6 {[%clk 0:02:58]} 9. c4 {[%clk 0:02:52]}  c6 {[%clk 0:02:49]} 10. b4 {[%clk 0:02:48]}  Re8 {[%clk 0:02:49]} 11. Bb2 {[%clk 0:02:47]}  Nf8 {[%clk 0:02:30]} 12. c5 {[%clk 0:02:42]}  dxc5 {[%clk 0:02:27]} 13. bxc5 {[%clk 0:02:41]}  N6d7 {[%clk 0:02:27]} 14. Qc2 {[%clk 0:02:35]}  Qe7 {[%clk 0:02:18]} 15. Ne4 {[%clk 0:02:34]}  h6 {[%clk 0:02:08]} 16. e3 {[%clk 0:02:23]}  Ne6 {[%clk 0:02:05]} 17. Rfc1 {[%clk 0:02:22]}  Nc7 {[%clk 0:01:50]} 18. Nd6 {[%clk 0:02:20]}  Rf8 {[%clk 0:01:48]} 19. Nd2 {[%clk 0:02:19]}  Nb5 {[%clk 0:01:45]} 20. N2e4 {[%clk 0:02:17]}  Nf6 {[%clk 0:01:41]} 21. Nxb5 {[%clk 0:02:14]}  axb5 {[%clk 0:01:40]} 22. Nd6 {[%clk 0:02:15]}  Ra6 {[%clk 0:01:23]} 23. Bc3 {[%clk 0:02:01]}  h5 {[%clk 0:01:03]} 24. h3 {[%clk 0:01:52]}  Nd7 {[%clk 0:00:58]} 25. Bb4 {[%clk 0:01:51]}  Rd8 {[%clk 0:00:58]} 26. Re1 {[%clk 0:01:50]}  Nf8 {[%clk 0:00:58]} 27. Rad1 {[%clk 0:01:50]}  Be6 {[%clk 0:00:54]} 28. d4 {[%clk 0:01:50]}  exd4 {[%clk 0:00:43]} 29. exd4 {[%clk 0:01:50]}  Qc7 {[%clk 0:00:40]} 30. Qe2 {[%clk 0:01:43]}  Nd7 {[%clk 0:00:36]} 31. d5 {[%clk 0:01:32]}  Bxd5 {[%clk 0:00:35]} 32. Bxd5 {[%clk 0:01:32]}  cxd5 {[%clk 0:00:36]} 33. Qe7 {[%clk 0:01:32]}  Rf8 {[%clk 0:00:34]} 34. Nxb5 {[%clk 0:01:32]}  Qc6 {[%clk 0:00:32]} 35. Nd4 {[%clk 0:01:32]}  Qc8 {[%clk 0:00:32]} 36. Nb5 {[%clk 0:01:22]}  Nf6 {[%clk 0:00:29]} 37. Kg2 {[%clk 0:01:10]}  Qc6 {[%clk 0:00:27]} 38. Nd4 {[%clk 0:01:09]}  Qa4 {[%clk 0:00:26]} 39. Qxb7 {[%clk 0:01:02]}  Raa8 {[%clk 0:00:26]} 40. Ra1 {[%clk 0:00:59]}  Ra7 {[%clk 0:00:15]} 41. Rxa4 {[%clk 0:00:58]}  Rxb7 {[%clk 0:00:15]} 42. a6 {[%clk 0:00:59]}  Ra7 {[%clk 0:00:15]} 43. Nc6 {[%clk 0:00:59]}  Raa8 {[%clk 0:00:16]} 44. a7 {[%clk 0:00:59]}  Ne4 {[%clk 0:00:16]} 45. Ne7+ {[%clk 0:01:00]}  Kh7 {[%clk 0:00:16]} 46. Nxd5 {[%clk 0:01:00]}  Rfc8 {[%clk 0:00:12]} 47. Nb6 {[%clk 0:01:00]} 1-0


[Site "https://www.chess.com"]

[Event "Titled Tuesday Blitz June 20 Early 2023"]
[White "Weishaeutel, Moritz"]
[Black "Indjic, Aleksandar"]
[WhiteFideId "12967300"]
[BlackFideId "911925"]
[WhiteElo "2301"]
[BlackElo "2614"]
[Result "0-1"]
[Round "8"]
[TimeControl "180+2"]
[Date "2023.06.20"]
[WhiteClock "0:00:02"]
[BlackClock "0:00:58"]
[Board "41"]

1. e4 {[%clk 0:03:00]}  e5 {[%clk 0:02:59]} 2. Nf3 {[%clk 0:03:01]}  Nc6 {[%clk 0:03:00]} 3. c3 {[%clk 0:03:01]}  Nf6 {[%clk 0:02:58]} 4. d4 {[%clk 0:03:01]}  Nxe4 {[%clk 0:02:53]} 5. d5 {[%clk 0:03:02]}  Ne7 {[%clk 0:02:53]} 6. Nxe5 {[%clk 0:03:02]}  Ng6 {[%clk 0:02:51]} 7. Nxg6 {[%clk 0:02:54]}  hxg6 {[%clk 0:02:50]} 8. Bd3 {[%clk 0:02:54]}  Nc5 {[%clk 0:02:48]} 9. O-O {[%clk 0:02:49]}  Qh4 {[%clk 0:02:43]} 10. h3 {[%clk 0:02:46]}  d6 {[%clk 0:02:35]} 11. Bb5+ {[%clk 0:02:46]}  Kd8 {[%clk 0:02:20]} 12. Qf3 {[%clk 0:02:44]}  Bf5 {[%clk 0:02:19]} 13. Re1 {[%clk 0:02:42]}  Be7 {[%clk 0:02:16]} 14. Nd2 {[%clk 0:02:30]}  a6 {[%clk 0:02:15]} 15. Bf1 {[%clk 0:02:30]}  Bf6 {[%clk 0:02:04]} 16. Nc4 {[%clk 0:02:21]}  Be4 {[%clk 0:02:01]} 17. Qd1 {[%clk 0:02:10]}  b5 {[%clk 0:01:57]} 18. Ne3 {[%clk 0:01:57]}  Kd7 {[%clk 0:01:53]} 19. Ng4 {[%clk 0:01:55]}  Rae8 {[%clk 0:01:51]} 20. a4 {[%clk 0:01:34]}  bxa4 {[%clk 0:01:39]} 21. Rxa4 {[%clk 0:01:31]}  Bc2 {[%clk 0:01:39]} 22. Qxc2 {[%clk 0:01:31]}  Rxe1 {[%clk 0:01:36]} 23. Ne5+ {[%clk 0:01:20]}  Bxe5 {[%clk 0:01:34]} 24. Rxh4 {[%clk 0:01:21]}  Rxh4 {[%clk 0:01:33]} 25. Qd2 {[%clk 0:00:49]}  Rhe4 {[%clk 0:01:32]} 26. f3 {[%clk 0:00:48]}  Bf4 {[%clk 0:01:23]} 27. Qxf4 {[%clk 0:00:20]}  Rxf4 {[%clk 0:01:22]} 28. Bxf4 {[%clk 0:00:21]}  Nd3 {[%clk 0:01:18]} 29. Bg3 {[%clk 0:00:16]}  Rc1 {[%clk 0:01:17]} 30. b4 {[%clk 0:00:13]}  Kc8 {[%clk 0:01:13]} 31. Bh4 {[%clk 0:00:09]}  Rxc3 {[%clk 0:01:11]} 32. Be2 {[%clk 0:00:06]}  Nxb4 {[%clk 0:01:10]} 33. Be1 {[%clk 0:00:06]}  Rb3 {[%clk 0:01:09]} 34. Bxb4 {[%clk 0:00:04]}  Rxb4 {[%clk 0:01:09]} 35. Bxa6+ {[%clk 0:00:04]}  Kd8 {[%clk 0:01:08]} 36. Bd3 {[%clk 0:00:04]}  f5 {[%clk 0:01:06]} 37. Kf2 {[%clk 0:00:03]}  Rd4 {[%clk 0:01:01]} 38. Ke3 {[%clk 0:00:04]}  Rxd5 {[%clk 0:01:00]} 39. Bc4 {[%clk 0:00:04]}  Rc5 {[%clk 0:00:57]} 40. Bf7 {[%clk 0:00:02]}  g5 {[%clk 0:00:58]} 0-1


[Site "https://www.chess.com"]

[Event "Titled Tuesday Blitz June 20 Early 2023"]
[White "Christiansen, Johan-Sebastian"]
[Black "Timerkhanov, Alexander"]
[WhiteFideId "1512668"]
[BlackFideId "24177938"]
[WhiteElo "2531"]
[BlackElo "2278"]
[Result "0-1"]
[Round "8"]
[TimeControl "180+2"]
[Date "2023.06.20"]
[WhiteClock "0:00:00"]
[BlackClock "0:00:19"]
[Board "45"]

1. e4 {[%clk 0:03:00]}  c5 {[%clk 0:02:59]} 2. Nf3 {[%clk 0:03:00]}  a6 {[%clk 0:02:59]} 3. c3 {[%clk 0:03:00]}  d5 {[%clk 0:02:59]} 4. exd5 {[%clk 0:03:00]}  Qxd5 {[%clk 0:03:00]} 5. d4 {[%clk 0:03:01]}  Nf6 {[%clk 0:02:59]} 6. Be3 {[%clk 0:02:58]}  cxd4 {[%clk 0:02:58]} 7. cxd4 {[%clk 0:02:59]}  e6 {[%clk 0:02:58]} 8. Nc3 {[%clk 0:02:59]}  Qd6 {[%clk 0:02:58]} 9. Rc1 {[%clk 0:02:46]}  Nc6 {[%clk 0:02:57]} 10. Bd3 {[%clk 0:02:44]}  Be7 {[%clk 0:02:56]} 11. O-O {[%clk 0:02:44]}  O-O {[%clk 0:02:55]} 12. Bb1 {[%clk 0:02:43]}  b5 {[%clk 0:02:48]} 13. Ne4 {[%clk 0:02:23]}  Nxe4 {[%clk 0:02:44]} 14. Bxe4 {[%clk 0:02:24]}  Bb7 {[%clk 0:02:42]} 15. Ne5 {[%clk 0:02:13]}  Rac8 {[%clk 0:02:24]} 16. Qh5 {[%clk 0:02:04]}  g6 {[%clk 0:02:21]} 17. Nxg6 {[%clk 0:02:04]}  fxg6 {[%clk 0:02:08]} 18. Bxg6 {[%clk 0:02:05]}  hxg6 {[%clk 0:01:57]} 19. Qxg6+ {[%clk 0:02:06]}  Kh8 {[%clk 0:01:56]} 20. Qh5+ {[%clk 0:01:57]}  Kg8 {[%clk 0:01:55]} 21. Bh6 {[%clk 0:01:41]}  Rf6 {[%clk 0:01:47]} 22. Rc5 {[%clk 0:01:35]}  Rxh6 {[%clk 0:01:34]} 23. Qxh6 {[%clk 0:01:34]}  Nxd4 {[%clk 0:01:34]} 24. Qg6+ {[%clk 0:00:47]}  Kf8 {[%clk 0:01:29]} 25. Rh5 {[%clk 0:00:48]}  Ne2+ {[%clk 0:01:19]} 26. Kh1 {[%clk 0:00:47]}  Qd4 {[%clk 0:01:19]} 27. Rh7 {[%clk 0:00:33]}  Bxg2+ {[%clk 0:01:14]} 28. Qxg2 {[%clk 0:00:34]}  Nf4 {[%clk 0:01:11]} 29. Qf3 {[%clk 0:00:27]}  Bd6 {[%clk 0:01:04]} 30. Rg1 {[%clk 0:00:25]}  Be5 {[%clk 0:00:55]} 31. h4 {[%clk 0:00:19]}  Qd5 {[%clk 0:00:43]} 32. Qxd5 {[%clk 0:00:19]}  exd5 {[%clk 0:00:42]} 33. Rg5 {[%clk 0:00:20]}  Re8 {[%clk 0:00:41]} 34. Rd7 {[%clk 0:00:09]}  d4 {[%clk 0:00:30]} 35. h5 {[%clk 0:00:10]}  Re6 {[%clk 0:00:30]} 36. Rh7 {[%clk 0:00:02]}  d3 {[%clk 0:00:27]} 37. Rd7 {[%clk 0:00:02]}  Rd6 {[%clk 0:00:27]} 38. Rf5+ {[%clk 0:00:02]}  Kg8 {[%clk 0:00:25]} 39. Rxd6 {[%clk 0:00:01]}  Bxd6 {[%clk 0:00:25]} 40. Rg5+ {[%clk 0:00:01]}  Kh7 {[%clk 0:00:24]} 41. Rg1 {[%clk 0:00:02]}  Nh3 {[%clk 0:00:20]} 42. Rd1 {[%clk 0:00:00]}  Nxf2+ {[%clk 0:00:19]} 0-1


[Site "https://www.chess.com"]

[Event "Titled Tuesday Blitz June 20 Early 2023"]
[White "Sethuraman, S.P."]
[Black "Seemann, Jakub"]
[WhiteFideId "5021596"]
[BlackFideId "21874697"]
[WhiteElo "2543"]
[BlackElo "2364"]
[Result "1-0"]
[Round "8"]
[TimeControl "180+2"]
[Date "2023.06.20"]
[WhiteClock "0:00:23"]
[BlackClock "0:00:00"]
[Board "46"]

1. d4 {[%clk 0:03:00]}  d5 {[%clk 0:02:46]} 2. Bf4 {[%clk 0:03:00]}  Nf6 {[%clk 0:02:44]} 3. e3 {[%clk 0:03:00]}  e6 {[%clk 0:02:43]} 4. Nf3 {[%clk 0:02:59]}  c5 {[%clk 0:02:43]} 5. Nbd2 {[%clk 0:02:59]}  Nc6 {[%clk 0:02:43]} 6. c3 {[%clk 0:02:57]}  cxd4 {[%clk 0:02:43]} 7. exd4 {[%clk 0:02:57]}  Nh5 {[%clk 0:02:43]} 8. Bg5 {[%clk 0:02:57]}  Qc7 {[%clk 0:02:41]} 9. Bb5 {[%clk 0:02:56]}  a6 {[%clk 0:02:32]} 10. Ba4 {[%clk 0:02:56]}  Bd6 {[%clk 0:02:29]} 11. Ne5 {[%clk 0:02:49]}  Nf6 {[%clk 0:02:28]} 12. f4 {[%clk 0:02:39]}  O-O {[%clk 0:02:22]} 13. O-O {[%clk 0:02:24]}  Ne8 {[%clk 0:02:20]} 14. Bh4 {[%clk 0:02:22]}  f6 {[%clk 0:02:19]} 15. Nd3 {[%clk 0:02:22]}  Bd7 {[%clk 0:02:08]} 16. Qe1 {[%clk 0:02:14]}  g6 {[%clk 0:02:02]} 17. Rd1 {[%clk 0:02:07]}  Ng7 {[%clk 0:02:00]} 18. Bb3 {[%clk 0:01:59]}  Rae8 {[%clk 0:01:58]} 19. Nf3 {[%clk 0:01:57]}  Na5 {[%clk 0:01:46]} 20. Bc2 {[%clk 0:01:52]}  Nc4 {[%clk 0:01:45]} 21. Bf2 {[%clk 0:01:49]}  Bxf4 {[%clk 0:01:07]} 22. Nxf4 {[%clk 0:01:43]}  Qxf4 {[%clk 0:01:08]} 23. b3 {[%clk 0:01:38]}  Na3 {[%clk 0:01:07]} 24. Bd3 {[%clk 0:01:35]}  Qc7 {[%clk 0:01:02]} 25. Bg3 {[%clk 0:01:34]}  Qc6 {[%clk 0:00:56]} 26. Qd2 {[%clk 0:01:31]}  Nf5 {[%clk 0:00:52]} 27. Bf4 {[%clk 0:01:27]}  g5 {[%clk 0:00:45]} 28. Bxg5 {[%clk 0:01:00]}  fxg5 {[%clk 0:00:43]} 29. Ne5 {[%clk 0:01:00]}  Qc7 {[%clk 0:00:31]} 30. Qxg5+ {[%clk 0:01:00]}  Kh8 {[%clk 0:00:30]} 31. g4 {[%clk 0:01:00]}  Bb5 {[%clk 0:00:23]} 32. gxf5 {[%clk 0:00:38]}  Rg8 {[%clk 0:00:18]} 33. Ng6+ {[%clk 0:00:38]}  hxg6 {[%clk 0:00:08]} 34. f6 {[%clk 0:00:35]}  Ref8 {[%clk 0:00:03]} 35. Rf4 {[%clk 0:00:29]}  Rf7 {[%clk 0:00:01]} 36. Bxb5 {[%clk 0:00:25]}  Nxb5 {[%clk 0:00:02]} 37. Rd3 {[%clk 0:00:25]}  Rh7 {[%clk 0:00:03]} 38. f7 {[%clk 0:00:24]}  Rf8 {[%clk 0:00:00]} 39. Qf6+ {[%clk 0:00:23]} 1-0


[Site "https://www.chess.com"]